bitfinex-derivatives/quotes_ETHF0:USTF0_20241004
["timestamp","ask_amount","ask_price","bid_price","bid_amount"]
[1728009348066,3.6069,2373.7,2373.5,0.42133]
[1728009348471,3.6069,2373.7,2373.4,3.28]
[1728009348677,3.6069,2373.7,2373.5,0.42132]
[1728009349471,3.6069,2373.7,2373.4,3.28]
[1728009349671,3.6069,2373.7,2373.6,0.42132]
[1728009350080,3.6069,2373.7,2373.6,9.70132]
[1728009350081,3.2078,2373.7,2373.6,9.70132]
[1728009357778,0.4112,2373.9,2373.6,9.70132]
[1728009357982,6.62113678,2373.9,2373.6,3.70132]
[1728009358683,6.62113678,2373.9,2373.3,0.88267716]
[1728009358684,3.00213678,2373.9,2373.8,3.70128]
[1728009362182,0.8227,2374.2,2373.8,13.4928]
[1728009362383,3.2078,2374.5,2374.4,0.42118]
[1728009362680,0.4054,2374.5,2374.4,3.70118]
[1728009363278,0.4284,2374.8,2374.7,0.42112]
[1728009363479,3.2078,2375.0,2374.9,0.42109]
[1728009363681,3.2078,2375.0,2374.9,3.70109]
[1728009363876,0.4054,2375.1,2374.9,13.4904]
[1728009364085,0.4054,2375.1,2375.0,0.42107]
[1728009368097,3.40753678,2375.1,2374.7,3.28]
[1728009368290,3.00213678,2374.9,2374.7,3.70111]
[1728009368697,3.00213678,2374.8,2374.6,0.42113]
[1728009368893,3.80773678,2374.8,2374.5,3.70115]
[1728009369097,3.00213678,2374.6,2374.1,7.428]
[1728009369295,3.00213678,2374.2,2373.9,3.28]
[1728009369604,3.00213678,2374.0,2373.7,7.428]
[1728009369902,3.00213678,2374.0,2373.9,3.28]
[1728009370194,3.2078,2374.2,2373.9,3.28]
[1728009370388,6.20993678,2374.2,2374.1,0.42123]
[1728009372395,6.20993678,2374.2,2374.1,3.70123]
[1728009374002,3.00213678,2374.2,2374.1,3.70123]
[1728009378404,3.00213678,2374.2,2373.9,3.70126]
[1728009378593,3.00213678,2374.2,2373.9,3.28]
[1728009378594,3.79053678,2374.2,2373.9,3.28]
[1728009378998,3.79053678,2374.2,2374.0,0.42124]
[1728009379202,3.79053678,2374.2,2374.1,0.42123]
[1728009380611,3.79053678,2374.2,2374.1,3.70123]
[1728009380798,3.2078,2374.3,2374.1,3.70123]
[1728009380799,0.4046,2374.5,2374.4,0.42118]
[1728009380999,0.4046,2374.5,2374.4,3.70118]
[1728009381198,4.0007,2374.7,2374.6,0.42114]
[1728009381403,0.7929,2374.7,2374.6,3.70114]
[1728009381600,0.388,2374.7,2374.6,3.70114]
[1728009381903,0.4099,2374.9,2374.6,3.70114]
[1728009381904,0.4099,2374.9,2374.6,13.4912]
[1728009382111,0.4099,2374.9,2374.8,3.7011]
[1728009387407,0.7929,2375.2,2374.8,3.28]
[1728009387607,3.00213678,2375.0,2374.9,0.42109]
[1728009388307,0.7929,2375.2,2375.1,0.42105]
[1728009388601,3.2078,2375.7,2375.6,0.42096]
[1728009388801,3.2078,2375.7,2375.6,3.28]
[1728009389008,3.2078,2375.7,2375.1,8.62550616]
[1728009389009,6.20993678,2375.7,2375.4,3.70099]
[1728009389203,3.40503678,2375.6,2375.4,3.70099]
[1728009389404,3.00213678,2375.5,2375.2,3.28]
[1728009389608,3.00213678,2375.3,2375.2,0.42103]
[1728009390605,3.40053678,2375.3,2375.2,0.42103]
[1728009391319,3.40053678,2375.3,2375.0,7.428]
[1728009391509,3.40053678,2375.3,2374.8,4.36915775]
[1728009391510,3.00213678,2375.1,2374.8,4.36915775]
[1728009391808,0.3984,2375.3,2374.9,0.42109]
[1728009391809,3.00213678,2375.0,2374.9,0.42109]
[1728009392012,1.94902004,2375.0,2374.9,0.42109]
[1728009392210,0.3984,2375.3,2375.2,0.42103]
[1728009392410,0.3984,2375.3,2375.2,3.70103]
[1728009392611,2.34742004,2375.3,2375.2,3.70103]
[1728009396307,1.94902004,2375.3,2375.2,3.70103]
[1728009397309,0.4029,2375.6,2375.5,0.42098]
[1728009397511,2.35192004,2375.6,2375.5,3.70098]
[1728009400419,5.55972004,2375.6,2375.5,0.42098]
[1728009400622,2.35192004,2375.6,2375.5,3.70098]
[1728009402216,0.4029,2375.6,2375.5,7.91058]
[1728009402619,4.0141,2375.9,2375.5,13.4896]
[1728009402821,2.75532004,2375.9,2375.8,3.70093]
[1728009404025,2.75532004,2375.9,2375.7,0.42094]
[1728009404226,0.8063,2375.9,2375.7,0.42094]
[1728009404423,1.94902004,2375.8,2375.6,3.70095]
[1728009404721,1.94902004,2375.7,2375.6,3.70095]
[1728009407815,1.94902004,2375.7,2375.4,3.28]
[1728009408014,1.94902004,2375.5,2375.4,3.28]
[1728009408221,1.94902004,2375.5,2375.4,3.701]
[1728009409214,1.94902004,2375.5,2375.4,3.28]
[1728009409724,1.94902004,2375.5,2375.4,0.421]
[1728009410726,1.94902004,2375.5,2375.4,3.701]
[1728009410917,1.94902004,2375.5,2375.4,3.28]
[1728009412223,1.94902004,2375.5,2375.2,3.28]
[1728009412424,1.94902004,2375.3,2375.2,3.28]
[1728009412926,5.15682004,2375.3,2375.2,3.28]
[1728009414521,5.15682004,2375.3,2375.2,3.70103]
[1728009416418,1.94902004,2375.3,2375.2,3.70103]
[1728009417716,1.94902004,2375.3,2375.2,3.28]
[1728009418121,1.94902004,2375.3,2375.2,3.70103]
[1728009419525,1.94902004,2375.3,2375.2,3.28]
[1728009419724,1.94902004,2375.3,2375.2,3.70103]
[1728009420930,0.408,2375.6,2375.2,14.57955775]
[1728009421127,1.94902004,2375.6,2375.5,3.28]
[1728009421337,1.94902004,2375.6,2375.5,3.70098]
[1728009422030,1.1925,2376.0,2375.5,7.4896]
[1728009422226,1.1925,2376.0,2375.9,3.70091]
[1728009422740,3.14152004,2376.0,2375.9,3.70091]
[1728009422939,3.14152004,2376.0,2375.9,3.28]
[1728009423642,3.14152004,2376.0,2375.9,3.70091]
[1728009424835,3.14152004,2376.0,2375.9,3.28]
[1728009425039,3.14152004,2376.0,2375.6,1.08915775]
[1728009425040,9.14152004,2376.0,2375.6,1.08915775]
[1728009425239,1.94902004,2375.7,2375.5,3.28]
[1728009425439,3.2078,2375.8,2375.4,1.08915775]
[1728009425440,1.94902004,2375.6,2375.4,1.08915775]
[1728009425642,2.77062004,2375.5,2375.4,1.51014775]
[1728009426139,1.94902004,2375.5,2375.4,3.22047184]
[1728009426341,1.94902004,2375.5,2375.4,3.76505072]
[1728009427342,1.94902004,2375.5,2375.4,3.76651761]
[1728009427735,1.94902004,2375.5,2375.4,3.76658436]
[1728009428131,1.94902004,2375.5,2375.4,6.62559436]
[1728009428440,1.94902004,2375.5,2375.4,7.04659436]
[1728009431551,1.94902004,2375.5,2375.4,5.41285773]
[1728009432042,1.94902004,2375.5,2375.4,7.06668055]
[1728009432244,1.94902004,2375.5,2375.4,5.41285773]
[1728009432541,0.8216,2375.7,2375.6,0.42096]
[1728009432747,1.94902004,2375.5,2375.4,2.5647155]
[1728009432949,1.94902004,2375.5,2375.4,7.59248559]
[1728009434339,1.94902004,2375.5,2375.4,11.01972717]
[1728009434742,0.89617507,2375.5,2375.4,12.1624278]
[1728009434943,0.89617507,2375.5,2375.4,11.56430605]
[1728009435442,0.89617507,2375.5,2375.4,12.1624285]
[1728009435747,0.4282,2376.0,2375.7,0.42094]
[1728009436047,0.4282,2376.0,2375.8,4.38288073]
[1728009436355,0.89617507,2375.8,2375.7,1.10288073]
[1728009436542,4.0062,2376.1,2375.7,10.61306206]
[1728009436543,0.89617507,2375.9,2375.7,10.61306206]
[1728009436847,0.89617507,2375.9,2375.8,8.27112498]
[1728009437449,0.89617507,2375.9,2375.8,8.27074476]
[1728009440046,0.89617507,2375.9,2375.8,8.38790657]
[1728009440246,0.89617507,2375.9,2375.8,5.66501219]
[1728009440952,0.7984,2376.1,2375.9,0.42091]
[1728009441256,0.7984,2376.1,2376.0,6.64201176]
[1728009441851,1.69457507,2376.1,2376.0,6.64201176]
[1728009442041,1.69457507,2376.1,2376.0,6.09090786]
[1728009442237,1.69457507,2376.1,2376.0,4.98777616]
[1728009442442,1.69457507,2376.1,2376.0,6.08975967]
[1728009443147,1.69457507,2376.1,2376.0,4.38198351]
[1728009443643,1.69457507,2376.1,2376.0,6.08949616]
[1728009444152,1.69457507,2376.1,2376.0,4.38198351]
[1728009446450,4.90237507,2376.1,2376.0,3.28]
[1728009446651,4.90237507,2376.1,2375.9,1.10198351]
[1728009446860,0.89617507,2376.0,2375.8,4.38198351]
[1728009447154,0.89617507,2375.9,2375.8,4.38198351]
[1728009447355,1.30997507,2375.9,2375.8,6.08921901]
[1728009447545,0.67828032,2375.9,2375.8,1.10198351]
[1728009447749,0.67828032,2375.9,2375.6,4.38198351]
[1728009447950,3.47228032,2375.7,2375.6,4.38198351]
[1728009448459,3.47228032,2375.7,2375.6,3.28]
[1728009449356,3.47228032,2375.7,2375.6,4.80294351]
[1728009450463,3.47228032,2375.7,2375.6,3.28]
[1728009453463,3.47228032,2375.7,2375.6,3.70096]
[1728009454460,3.47228032,2375.7,2375.6,4.80294351]
[1728009455455,3.47228032,2375.7,2375.6,3.70096]
[1728009455657,3.47228032,2375.7,2375.6,3.28]
[1728009456160,3.47228032,2375.7,2375.6,4.38198351]
[1728009456362,3.47228032,2375.7,2375.6,4.80294351]
[1728009457556,0.26448032,2375.7,2375.6,4.80294351]
[1728009457762,3.47228032,2375.7,2375.6,4.80294351]
[1728009458151,0.26448032,2375.7,2375.6,4.80294351]
[1728009458356,3.47228032,2375.7,2375.6,4.80294351]
[1728009459263,3.47228032,2375.7,2375.6,4.38198351]
[1728009460056,0.26448032,2375.7,2375.6,4.38198351]
[1728009460256,3.47228032,2375.7,2375.6,4.38198351]
[1728009461361,3.47228032,2375.7,2375.6,3.28]
[1728009461759,3.47228032,2375.7,2375.6,4.38198351]
[1728009462959,3.47228032,2375.7,2375.6,3.28]
[1728009463463,3.47228032,2375.7,2375.5,1.10198351]
[1728009463662,1.03738032,2375.6,2375.4,4.38198351]
[1728009463859,0.26448032,2375.5,2375.4,4.38198351]
[1728009464058,0.67548032,2375.5,2375.4,3.28]
[1728009468464,0.67548032,2375.5,2375.4,3.701]
[1728009470372,0.67548032,2375.5,2375.4,3.28]
[1728009470871,0.67548032,2375.5,2375.4,3.701]
[1728009471071,0.67548032,2375.5,2375.4,3.28]
[1728009472974,0.67548032,2375.5,2375.4,3.701]
[1728009473564,0.67548032,2375.5,2375.4,3.28]
[1728009473778,0.67548032,2375.5,2375.4,3.701]
[1728009478277,0.26448032,2375.5,2375.4,3.701]
[1728009483484,0.26448032,2375.5,2375.4,1.941]
[1728009484090,0.26448032,2375.5,2375.4,1.52]
[1728009484285,0.68198032,2375.5,2375.4,1.52]
[1728009486191,0.68198032,2375.5,2375.2,1.10198351]
[1728009486192,6.68198032,2375.5,2375.2,1.10198351]
[1728009486388,0.26448032,2375.3,2375.0,2.62198351]
[1728009486682,0.26448032,2375.1,2375.0,2.0741083]
[1728009486897,0.26448032,2375.1,2375.0,3.77927138]
[1728009487082,0.3859,2375.6,2375.0,17.52984395]
[1728009487277,0.26448032,2375.3,2375.2,2.07409727]
[1728009487482,0.26448032,2375.3,2375.2,4.18206035]
[1728009488593,0.26448032,2375.3,2375.2,7.47206035]
[1728009490589,0.26448032,2375.3,2375.2,5.81899308]
[1728009491382,0.26448032,2375.3,2375.2,8.02304414]
[1728009491893,0.26448032,2375.3,2375.2,5.81899308]
[1728009492486,0.26448032,2375.3,2375.2,11.43761745]
[1728009493497,0.26448032,2375.3,2375.2,9.23356639]
[1728009494290,0.26448032,2375.3,2375.2,9.23669469]
[1728009496093,0.26448032,2375.3,2375.2,3.91522346]
[1728009496294,0.26448032,2375.3,2375.2,1.70762156]
[1728009496500,0.26448032,2375.3,2375.2,4.33625346]
[1728009496694,0.26448032,2375.3,2375.2,3.91522346]
[1728009496897,6.26448032,2375.3,2375.2,3.36348493]
[1728009497093,6.26448032,2375.3,2375.1,1.10397456]
[1728009497295,0.26448032,2375.2,2375.1,1.10397456]
[1728009497796,0.26448032,2375.2,2375.0,1.65586337]
[1728009497797,0.26448032,2375.2,2375.0,1.10397456]
[1728009498001,3.6265,2375.4,2375.0,1.10397456]
[1728009498002,4.27088032,2375.1,2375.0,1.10397456]
[1728009498206,4.27088032,2375.1,2375.0,2.81171202]
[1728009498501,4.27088032,2375.1,2375.0,2.81144125]
[1728009498892,4.27088032,2375.1,2375.0,2.81142529]
[1728009499294,4.27088032,2375.1,2375.0,1.10397456]
[1728009502099,4.27088032,2375.1,2375.0,2.81088752]
[1728009502303,4.27088032,2375.1,2375.0,1.10397456]
[1728009503004,4.27088032,2375.1,2375.0,5.41790034]
[1728009503005,0.26448032,2375.1,2375.0,5.41790034]
[1728009503305,3.2078,2375.5,2375.3,0.42101]
[1728009503509,0.26448032,2375.3,2375.2,0.42103]
[1728009503702,0.26448032,2375.3,2375.2,4.33404738]
[1728009505015,0.26448032,2375.3,2375.2,7.62404738]
[1728009507217,0.26448032,2375.3,2375.2,11.0384808]
[1728009507617,3.2078,2375.5,2375.2,11.0384808]
[1728009507916,3.2078,2375.5,2375.4,1.10352175]
[1728009508117,3.2078,2375.5,2375.4,2.81028356]
[1728009508608,3.2078,2375.5,2375.4,2.80988125]
[1728009509018,3.2078,2375.5,2375.4,1.10352175]
[1728009509719,3.2078,2375.5,2375.4,2.8099751]
[1728009510322,3.2078,2375.5,2375.4,1.10352175]
[1728009513023,3.2078,2375.5,2375.3,1.10352175]
[1728009517234,7.4174,2375.5,2375.3,1.10352175]
[1728009517421,7.4174,2375.5,2375.1,1.65528262]
[1728009517630,3.2078,2375.2,2375.0,2.20625557]
[1728009517924,0.8384,2375.1,2375.0,2.20625557]
[1728009518123,0.8384,2375.1,2375.0,7.31789635]
[1728009518512,0.8384,2375.1,2375.0,7.31921679]
[1728009518718,0.8384,2375.1,2375.0,8.82271078]
[1728009519029,0.4173,2375.1,2375.0,11.54560516]
[1728009521527,0.4173,2375.1,2375.0,9.77560516]
[1728009522120,0.4019,2375.3,2375.1,0.42104]
[1728009522322,0.4019,2375.3,2375.2,3.22388026]
[1728009522525,0.4019,2375.3,2375.2,3.64491026]
[1728009522931,0.4019,2375.3,2375.2,3.22388026]
[1728009523128,0.4019,2375.3,2375.2,3.17561486]
[1728009523324,0.4019,2375.3,2375.2,4.87943228]
[1728009523525,0.4019,2375.3,2375.2,3.22381742]
[1728009523834,0.4019,2375.3,2375.2,4.87943265]
[1728009524035,0.4019,2375.3,2375.2,3.22381742]
[1728009526730,0.4019,2375.3,2375.2,4.87954152]
[1728009527034,0.4019,2375.3,2375.2,3.35954152]
[1728009527236,0.4019,2375.3,2375.2,1.70381742]
[1728009528241,0.4019,2375.3,2375.2,1.7039389]
[1728009528637,0.4019,2375.3,2375.1,4.14850146]
[1728009529538,0.4019,2375.3,2375.2,3.35978517]
[1728009529940,0.4019,2375.3,2375.2,1.70398945]
[1728009530535,0.4019,2375.3,2375.1,4.14850146]
[1728009532139,0.4019,2375.3,2375.1,3.72745146]
[1728009532338,0.4019,2375.3,2375.1,1.52]
[1728009532842,3.2078,2375.2,2375.1,1.52]
[1728009534837,3.2078,2375.2,2375.1,1.94105]
[1728009535942,3.2078,2375.2,2375.1,1.52]
[1728009536442,3.2078,2375.2,2375.1,1.94105]
[1728009537445,3.2078,2375.2,2375.1,5.8527051]
[1728009537844,3.2078,2375.2,2375.1,3.64500858]
[1728009539746,3.2078,2375.2,2375.1,3.22395858]
[1728009540149,3.2078,2375.2,2375.1,3.64500858]
[1728009540740,3.2078,2375.2,2375.1,1.94105]
[1728009541043,3.2078,2375.2,2375.1,5.85282909]
[1728009542550,3.2078,2375.5,2375.1,6.63221145]
[1728009542750,3.2078,2375.5,2375.4,3.59671915]
[1728009542943,1.2078,2375.7,2375.6,0.42096]
[1728009543149,0.814,2375.7,2375.6,5.30071793]
[1728009545853,0.814,2375.7,2375.6,5.30035498]
[1728009550048,0.814,2375.7,2375.6,3.35939498]
[1728009550251,5.0236,2375.7,2375.4,3.17567536]
[1728009550449,9.3381,2375.6,2375.5,1.70380065]
[1728009550656,9.3381,2375.6,2375.4,1.65567536]
[1728009550857,4.2096,2375.5,2375.4,1.65567536]
[1728009551156,4.2096,2375.5,2375.4,3.35952427]
[1728009551346,4.2096,2375.5,2375.4,3.35948506]
[1728009552449,4.2096,2375.5,2375.3,1.65567536]
[1728009552656,3.6085,2375.6,2375.2,1.94103]
[1728009552657,3.6085,2375.6,2375.2,3.17567536]
[1728009552849,3.6085,2375.6,2375.3,1.70386639]
[1728009553050,3.6085,2375.6,2375.2,3.59670536]
[1728009553249,3.6085,2375.6,2375.3,1.70386476]
[1728009553455,3.6085,2375.6,2375.2,3.59670536]
[1728009553653,3.6085,2375.6,2375.3,1.7038591]
[1728009553854,3.6085,2375.6,2375.2,3.59670536]
[1728009554058,3.6085,2375.6,2375.3,1.70385994]
[1728009554262,3.6085,2375.6,2375.2,3.59670536]
[1728009554455,3.6085,2375.6,2375.3,1.70380261]
[1728009554651,3.6085,2375.6,2375.2,3.59670536]
[1728009554858,3.6085,2375.6,2375.3,1.70383415]
[1728009555055,3.6085,2375.6,2375.2,3.59670536]
[1728009555358,3.6085,2375.6,2375.3,1.70383503]
[1728009555562,7.8181,2375.6,2375.2,3.59670536]
[1728009555756,3.6085,2375.6,2375.3,1.70382627]
[1728009555961,3.6085,2375.6,2375.2,3.59670536]
[1728009556154,3.6085,2375.6,2375.3,1.70382725]
[1728009556356,3.6085,2375.6,2375.4,1.52]
[1728009556561,7.8181,2375.6,2375.4,1.52]
[1728009556761,4.2096,2375.5,2375.4,1.52]
[1728009561167,3.6085,2375.6,2375.4,1.52]
[1728009561467,4.2096,2375.5,2375.4,1.52]
[1728009567269,3.6085,2375.6,2375.4,1.52]
[1728009567475,7.8181,2375.6,2375.4,1.52]
[1728009567768,4.2096,2375.5,2375.4,1.52]
[1728009567974,4.2096,2375.5,2375.2,3.17567536]
[1728009568170,3.2078,2375.3,2375.2,3.17567536]
[1728009568474,3.2078,2375.3,2375.2,4.87943342]
[1728009571771,3.6085,2375.6,2375.3,0.42101]
[1728009572072,3.6085,2375.6,2375.4,1.941]
[1728009572266,3.6085,2375.6,2375.4,1.52]
[1728009572464,4.2096,2375.5,2375.4,1.52]
[1728009573367,4.2096,2375.5,2375.3,1.52]
[1728009573572,3.6085,2375.6,2375.3,1.52]
[1728009573770,3.6085,2375.6,2375.3,1.94101]
[1728009573971,3.6085,2375.6,2375.3,3.59668536]
[1728009574169,3.6085,2375.6,2375.3,1.94101]
[1728009575071,3.6085,2375.6,2375.3,3.59668536]
[1728009575469,3.6085,2375.6,2375.4,0.421]
[1728009575873,7.8181,2375.6,2375.3,3.59668536]
[1728009576072,3.6085,2375.6,2375.3,3.59668536]
[1728009576267,3.6085,2375.6,2375.3,3.17567536]
[1728009576469,3.6085,2375.6,2375.4,0.42099]
[1728009576873,7.8181,2375.6,2375.4,0.42099]
[1728009577066,7.8181,2375.6,2375.3,3.17567536]
[1728009577279,3.6085,2375.6,2375.4,0.421]
[1728009577672,7.8181,2375.6,2375.4,0.421]
[1728009577873,3.6085,2375.6,2375.4,0.421]
[1728009578076,7.8181,2375.6,2375.4,0.421]
[1728009578271,3.6085,2375.6,2375.4,0.421]
[1728009578878,7.8181,2375.6,2375.4,0.421]
[1728009579378,7.8181,2375.6,2375.3,3.59668536]
[1728009579581,3.6085,2375.6,2375.3,1.94101]
[1728009579879,3.6085,2375.6,2375.3,3.59668536]
[1728009580267,3.6085,2375.6,2375.3,1.94101]
[1728009580477,3.6085,2375.6,2375.4,0.42099]
[1728009581277,3.6085,2375.6,2375.4,0.421]
[1728009581482,3.6085,2375.6,2375.5,1.94098]
[1728009581979,3.2078,2375.6,2375.5,1.94098]
[1728009582174,3.2078,2375.9,2375.5,7.43605073]
[1728009582376,0.402,2376.0,2375.9,0.42091]
[1728009582884,0.4245,2376.1,2375.9,0.42091]
[1728009583081,0.4245,2376.1,2376.0,1.52]
[1728009589578,3.6282,2376.2,2376.0,1.94088]
[1728009589882,3.6282,2376.2,2376.1,1.94087]
[1728009590187,3.6282,2376.2,2376.1,1.52]
[1728009590377,4.4483,2376.5,2376.1,7.43307933]
[1728009590582,4.4483,2376.5,2376.4,1.52]
[1728009590987,4.039,2376.5,2376.4,1.52]
[1728009591184,3.2078,2376.5,2376.4,6.14882]
[1728009591484,3.7193,2376.9,2376.7,0.42076]
[1728009591694,3.7193,2376.9,2376.4,13.43049553]
[1728009591695,3.2078,2376.9,2376.8,1.94075]
[1728009592076,3.2078,2376.9,2376.8,1.52]
[1728009592287,3.2078,2376.9,2376.8,1.94075]
[1728009592485,3.2078,2376.9,2376.8,1.52]
[1728009593485,3.2078,2376.9,2376.7,4.0796]
[1728009598089,3.2078,2376.9,2376.7,3.28]
[1728009598388,3.2078,2376.9,2376.3,1.1957]
[1728009598389,0.3893,2376.8,2376.3,1.1957]
[1728009598592,3.2078,2376.6,2376.3,0.8021]
[1728009598781,3.2078,2376.6,2376.3,1.1957]
[1728009600188,3.2078,2376.6,2376.4,3.28]
[1728009601493,3.6347,2376.6,2376.3,0.4142]
[1728009601694,3.6347,2376.6,2376.2,3.28]
[1728009601990,3.6347,2376.6,2376.2,3.70085]
[1728009602995,3.6347,2376.6,2376.4,3.28]
[1728009603495,3.2078,2376.6,2376.4,3.70082]
[1728009603800,3.2078,2376.6,2376.4,3.28]
[1728009603997,0.4269,2376.5,2376.4,3.28]
[1728009604197,0.4269,2376.5,2376.2,3.28]
[1728009604498,0.3858,2376.4,2376.2,3.28]
[1728009606598,0.3858,2376.4,2376.2,3.70085]
[1728009607297,0.3858,2376.4,2376.2,3.28]
[1728009608100,0.3858,2376.4,2376.2,3.70086]
[1728009611505,3.2078,2376.3,2375.7,1.65544544]
[1728009611707,3.2078,2376.0,2375.7,3.28]
[1728009611999,1.2255,2375.9,2375.6,5.29119574]
[1728009612597,3.2078,2375.7,2375.5,3.28]
[1728009613100,3.2078,2375.7,2375.6,0.42096]
[1728009614004,3.2078,2375.7,2375.6,0.80746]
[1728009614199,0.4103,2376.1,2375.8,0.42092]
[1728009614405,0.8096,2376.1,2375.9,0.42091]
[1728009614598,0.3993,2376.1,2376.0,3.70089]
[1728009614902,3.2078,2376.2,2376.1,0.42087]
[1728009615207,3.9917,2376.5,2376.3,0.42084]
[1728009615407,3.9917,2376.5,2376.2,3.70085]
[1728009616499,3.9917,2376.5,2376.2,3.28]
[1728009616699,3.9917,2376.5,2376.3,0.42083]
[1728009617304,3.9917,2376.5,2376.2,3.70085]
[1728009617511,3.9917,2376.5,2376.1,0.7746]
[1728009617804,3.9917,2376.5,2376.0,0.42089]
[1728009618808,3.9917,2376.5,2375.9,3.28]
[1728009619309,3.2078,2376.2,2376.0,0.42089]
[1728009619704,3.2078,2376.2,2375.9,3.28]
[1728009619705,0.3988,2376.1,2375.9,3.28]
[1728009619903,0.8014,2376.1,2375.9,3.28]
[1728009620913,0.8014,2376.1,2375.9,3.70091]
[1728009621113,0.8014,2376.1,2375.9,3.28]
[1728009621812,0.8014,2376.1,2376.0,0.42089]
[1728009622317,0.8014,2376.1,2375.9,3.28]
[1728009622504,0.8014,2376.1,2375.9,3.7009]
[1728009623618,1.1982,2376.1,2375.9,3.7009]
[1728009624311,1.1982,2376.1,2375.6,1.65544544]
[1728009624511,3.2078,2375.9,2375.5,0.42097]
[1728009624815,3.2078,2375.9,2375.6,0.42095]
[1728009625412,3.2078,2375.9,2375.5,0.42097]
[1728009626319,3.2078,2375.9,2375.4,5.35643544]
[1728009626515,3.2078,2375.9,2375.5,0.42096]
[1728009626713,3.2078,2375.9,2375.6,0.42096]
[1728009627322,3.2078,2375.9,2375.8,3.28]
[1728009629220,3.2078,2375.9,2375.8,3.70093]
[1728009630425,1.1982,2376.1,2375.8,3.70093]
[1728009630720,3.2078,2376.0,2375.8,3.70093]
[1728009634219,3.2078,2376.0,2375.8,3.28]
[1728009634420,3.2078,2376.0,2375.8,3.70092]
[1728009637627,1.1982,2376.1,2375.8,3.70092]
[1728009637928,3.2078,2376.0,2375.8,3.70092]
[1728009639827,3.2078,2376.0,2375.9,0.42091]
[1728009641224,3.2078,2376.0,2375.8,3.70091]
[1728009642023,3.2078,2376.0,2375.9,0.42091]
[1728009645527,3.2078,2376.0,2375.9,1.94091]
[1728009646722,3.2078,2376.0,2375.9,1.52]
[1728009649630,3.2078,2376.0,2375.9,1.94091]
[1728009650932,3.2078,2376.0,2375.9,1.52]
[1728009654822,3.2078,2376.0,2375.9,1.94091]
[1728009655436,3.2078,2376.0,2375.9,3.04159404]
[1728009655630,3.2078,2376.0,2375.9,2.62068404]
[1728009655934,3.2078,2376.0,2375.9,3.04159404]
[1728009656234,3.2078,2376.0,2375.9,2.62068404]
[1728009657334,3.2078,2376.0,2375.9,4.32698361]
[1728009657536,3.2078,2376.0,2375.9,4.32698664]
[1728009658832,3.2078,2376.0,2375.9,4.74789664]
[1728009659038,1.1982,2376.1,2376.0,0.42089]
[1728009659235,3.2078,2376.4,2376.2,0.42085]
[1728009659444,3.6271,2376.4,2376.3,2.62351751]
[1728009660144,7.8351,2376.4,2376.2,1.10351751]
[1728009660342,6.14885,2376.3,2376.1,1.10351751]
[1728009660639,3.6271,2376.4,2376.0,1.10351751]
[1728009660640,4.04793,2376.4,2376.0,1.10351751]
[1728009660837,3.2078,2376.1,2376.0,1.10351751]
[1728009661041,3.2078,2376.1,2376.0,2.8099764]
[1728009662938,4.4246,2376.1,2376.0,2.8099764]
[1728009663239,4.4246,2376.1,2376.0,3.36173516]
[1728009663833,4.4246,2376.1,2376.0,1.70645889]
[1728009664034,4.4246,2376.1,2376.0,3.36173516]
[1728009664737,4.4246,2376.1,2376.0,2.81072426]
[1728009664934,4.4246,2376.1,2375.8,2.62426537]
[1728009665133,6.36548,2376.1,2375.8,1.10426537]
[1728009665337,6.36548,2376.1,2375.7,1.10426537]
[1728009665731,3.2078,2375.8,2375.7,1.10426537]
[1728009667243,3.2078,2375.8,2375.7,2.62426537]
[1728009667441,3.2078,2375.8,2375.7,4.33191102]
[1728009667843,3.2078,2375.8,2375.7,2.62426537]
[1728009668242,3.2078,2375.8,2375.7,4.331921]
[1728009670043,3.2078,2375.8,2375.7,4.33224031]
[1728009672854,3.2078,2375.8,2375.7,4.75318031]
[1728009673052,3.2078,2375.8,2375.7,9.2727687]
[1728009673248,3.2078,2375.8,2375.7,9.27459266]
[1728009673456,3.2078,2375.8,2375.7,7.06514317]
[1728009674949,3.2078,2375.8,2375.7,7.06517935]
[1728009675449,3.2078,2375.8,2375.7,6.64423935]
[1728009675847,15.35753,2375.8,2375.7,3.3652629]
[1728009676151,15.35753,2375.8,2375.5,1.10492673]
[1728009676152,0.42096,2375.6,2375.5,1.10492673]
[1728009676351,4.2096,2375.7,2375.3,1.65718312]
[1728009676352,4.6376,2375.7,2375.3,1.65718312]
[1728009676654,3.2078,2375.4,2375.3,1.65718312]
[1728009676857,3.2078,2375.4,2375.3,1.70733886]
[1728009677359,3.2078,2375.4,2375.2,3.17718312]
[1728009677661,0.428,2375.7,2375.3,11.27980116]
[1728009677662,3.2078,2375.7,2375.3,11.27980116]
[1728009677956,0.211,2376.2,2375.6,3.29]
[1728009678158,4.2314,2376.6,2376.1,3.29]
[1728009678454,0.413,2376.5,2376.1,3.29]
[1728009679753,3.2078,2376.3,2376.1,3.29]
[1728009679948,0.8126,2376.2,2376.1,3.29]
[1728009689657,0.8126,2376.2,2376.0,4.94530496]
[1728009689859,0.394,2376.1,2376.0,4.94530496]
[1728009690059,0.394,2376.1,2376.0,6.64800181]
[1728009692269,0.394,2376.1,2376.0,4.99269685]
[1728009692854,0.394,2376.1,2376.0,6.64800181]
[1728009693460,0.394,2376.1,2376.0,4.99269685]
[1728009694265,0.394,2376.1,2376.0,7.06889181]
[1728009694467,0.394,2376.1,2376.0,7.06869699]
[1728009694967,3.2078,2376.3,2376.2,0.42086]
[1728009697468,3.2078,2376.3,2376.1,4.1065]
[1728009698861,3.2078,2376.3,2376.1,4.52737]
[1728009699375,3.2078,2376.3,2376.1,4.1065]
[1728009703173,3.2078,2376.3,2376.1,5.76070005]
[1728009704474,3.2078,2376.3,2376.2,2.12207545]
[1728009706264,3.2078,2376.3,2376.2,1.70121545]
[1728009706671,3.2078,2376.3,2376.1,6.18157005]
[1728009707276,3.2078,2376.3,2376.1,5.76070005]
[1728009708276,3.2078,2376.3,2376.1,6.18157005]